Cogmind - Beta 9.2 @@@ ROGUE MODE // 2019.12.01 @ 22:48:50 Player: Fleshy Vegetable Bird Result: Destroyed by Y-54 Guardian with Flak Gun Performance ------------- Evolutions (3) 1500 Regions Visited (9) 1800 Robots Destroyed (72) 360 Value Destroyed (816) 816 Prototype IDs (5) 100 Alien Tech Used (0) 0 Bonus (42) 42 TOTAL SCORE: 4618 Bonus ------- Follower Combat Kills 42 Cogmind --------- Core Integrity 0/700 Matter 232/300 Energy 150/150 System Corruption 19% Temperature Cool (6) Movement Core (150) Ox2 Location -7/Storage Parts ------- > --- POWER (1) -------- Micro Nuclear Core > --- PROPULSION (4) --- (None) > --- UTILITY (6) ------ Advanced Signal Interpreter Advanced Terrain Scan Processor Hacking Suite System Shield > --- WEAPON (2) ------- Spear > --- INVENTORY (4) ---- Micro Nuclear Core Gauss Rifle Peak State ------------ > --- POWER ------------ Light Nuclear Core > --- PROPULSION ------- Advanced Treads Armored Huge Wheel Xenon Bombardment Thruster > --- UTILITY ---------- Medium Storage Unit Large Storage Unit Long-range Sensor Array Advanced Signal Interpreter Hacking Suite System Shield > --- WEAPON ----------- Advanced Beam Cannon Heavy Mace > --- INVENTORY -------- Micro Nuclear Core Wheel Advanced Weight Redist. System Long-range Sensor Array Advanced Terrain Scan Processor Transmission Jammer Improved ECM Suite Plasma Cannon Enhanced Autogun Gauss Rifle Advanced Assault Cannon Advanced EMP Blaster Advanced EMP Blaster [Rating: 43] Favorites ----------- Power Light Ion Engine Engine Light Ion Engine Power Core Light Nuclear Core Propulsion Wheel Treads Advanced Treads Wheel Wheel Flight Unit Xenon Bombardment Thruster Utility Large Storage Unit Device Long-range Sensor Array Storage Large Storage Unit Processor Advanced Signal Interpreter Hackware System Shield Protection Improved Light Armor Plating Weapon EM Pulse Gun Energy Gun EM Pulse Gun Energy Cannon Advanced Beam Cannon Ballistic Gun Assault Rifle Ballistic Cannon Advanced Assault Cannon Launcher Rocket Launcher Impact Weapon Heavy Mace Slashing Weapon Katana Piercing Weapon Spear Build | -11 -10 -10 -10 -9 -8 -7 -7 -7 -7 ------- Run | Scr Mat Min Exi Min Mat Fac Was Fac Sto Slots Evolved 6 | . . . . . 4 2 . . . Power . | . . . . . . . . . . Propulsion 2 | . . . . . 2 . . . . Utility 4 | . . . . . 2 2 . . . Weapon . | . . . . . . . . . . Parts Attached 63 | 6 2 8 2 1 19 4 4 8 9 Power 9 | 1 . 1 . . 2 1 1 . 3 Engine 5 | 1 . 1 . . 1 . . . 2 Core 4 | . . . . . 1 1 1 . 1 Reactor . | . . . . . . . . . . Propulsion 14 | 2 . 4 1 . 5 . 1 . 1 Treads 1 | . . . . . 1 . . . . Leg . | . . . . . . . . . . Wheel 11 | 2 . 4 1 . 4 . . . . Hover . | . . . . . . . . . . Flight 2 | . . . . . . . 1 . 1 Utility 20 | 2 1 . 1 . 5 3 2 3 3 Device 7 | . . . . . 2 1 1 1 2 Storage 4 | 2 1 . 1 . . . . . . Processor 2 | . . . . . . 1 1 . . Hackware 5 | . . . . . 1 1 . 2 1 Protection 2 | . . . . . 2 . . . . Artifact . | . . . . . . . . . . Weapon 20 | 1 1 3 . 1 7 . . 5 2 Energy Gun 5 | 1 1 1 . . 2 . . . . Energy Cannon 1 | . . . . . 1 . . . . Ballistic Gun 5 | . . 1 . 1 1 . . 1 1 Ballistic Cannon 1 | . . . . . 1 . . . . Launcher 2 | . . 1 . . 1 . . . . Special Weapon . | . . . . . . . . . . Impact Weapon 4 | . . . . . 1 . . 3 . Slashing Weapon 1 | . . . . . . . . 1 . Piercing Weapon 1 | . . . . . . . . . 1 Special Melee Weapon . | . . . . . . . . . . Unidentified Prototypes 5 | . . . . . 5 . . . . Parts Lost 14 | . . 4 . . 3 . 2 1 4 Power 2 | . . . . . 1 . . . 1 Propulsion 4 | . . 1 . . 1 . 1 . 1 Utility 4 | . . . . . . . 1 1 2 Weapon 4 | . . 3 . . 1 . . . . Highest Loss Streak 3 | . . 2 . . 2 . 1 1 3 Average Slot Usage (%) 85 | . 97 96 100 100 86 91 48 40 44 Engine 8 | . 14 14 14 14 6 . . . 3 Core 1 | . . . . . 1 7 3 . . Treads 1 | . . . . . . 7 . . . Wheel 20 | . 28 27 28 28 24 15 . . . Device 2 | . . . . . 5 6 5 5 3 Storage 19 | . 28 28 28 28 18 15 5 . . Processor 3 | . . . . . . 6 14 15 15 Hackware 5 | . . . . . 3 14 12 15 15 Protection 1 | . . . . . 7 . . . . Energy Gun 7 | . 26 14 . . 10 . . . . Energy Cannon 1 | . . . . . . 7 . . . Ballistic Gun 4 | . . 2 14 26 3 . . . . Launcher 3 | . . 7 14 1 . . . . . Impact Weapon 1 | . . . . . 1 7 . 2 . Naked Turns . | . . . . . . . . . . Heaviest Build 41 | 13 27 29 33 33 41 39 14 5 9 Greatest Support 48 | 20 20 20 20 20 48 38 16 3 7 Greatest Overweight (x) 2 | 1 1 2 1 1 1 1 . 1 2 Average Overweight (x) . | . . 1 1 1 . . . . . Largest Inventory Capacity 14 | 8 12 12 14 14 14 14 14 4 4 Average Capacity 11 | 7 8 12 12 14 14 14 7 4 4 Most Carried 14 | 7 8 12 12 14 14 14 14 4 4 Average Carried 10 | 4 6 10 11 13 13 13 7 2 2 Final Capacity 14 | 8 12 12 14 14 14 14 4 4 4 Final Carried 14 | 5 8 11 12 14 14 14 4 4 2 Class Distribution -------------------- 75% | Mutant 24% | Hacker-Mutant Dominant Class ---------------- Mutant | -10/Materials Mutant | -10/Mines Mutant | -10/Exiles Mutant | -9/Mines Mutant | -8/Materials Hacker-Mutant | -7/Factory Hacker-Mutant | -7/Waste Hacker-Mutant | -7/Factory Hacker-Mutant | -7/Storage Resources | -11 -10 -10 -10 -9 -8 -7 -7 -7 -7 ----------- Run | Scr Mat Min Exi Min Mat Fac Was Fac Sto Matter Collected 1284 | 260 . 374 . 36 373 54 . 187 . Remotely . | . . . . . . . . . . Salvage Created 2055 | 203 50 413 . . 926 255 . 208 . Parts 117 | 14 1 30 . . 50 13 . 9 . Haulers Intercepted 5 | . . . . . 4 1 . . . Recyclers Shooed 1 | . . . . . . 1 . . . Parts Field Recycled . | . . . . . . . . . . Retrieved Matter . | . . . . . . . . . . Parts Self-Destructed . | . . . . . . . . . . Prevented . | . . . . . . . . . . Kills | -11 -10 -10 -10 -9 -8 -7 -7 -7 -7 ------- Run | Scr Mat Min Exi Min Mat Fac Was Fac Sto Combat Hostiles Destroyed 39 | . 1 26 . . 12 . . . . Guns 19 | . 1 9 . . 9 . . . . Cannons 3 | . . . . . 3 . . . . AOE 17 | . . 17 . . . . . . . Classes Destroyed 11 | 2 1 3 . . 5 . . . . Worker 8 | . . 3 . . 2 2 . 1 . Builder 1 | . . . . . 1 . . . . Tunneler 9 | 5 . 2 . . . 1 . 1 . Hauler 5 | . . . . . 4 1 . . . Recycler 10 | 1 . 2 . . 3 2 . 2 . Swarmer 14 | . . 11 . . 3 . . . . Grunt 5 | . 1 1 . . 3 . . . . Brawler 1 | . . . . . 1 . . . . Sentry 4 | . . . . . 4 . . . . Hunter 1 | . . . . . 1 . . . . Assembled 14 | . . 14 . . . . . . . Best Kill Streak 8 | 2 1 8 . . 6 2 . 2 . Combat Bots Only 5 | . 1 4 . . 5 . . . . Max Kills in Single Turn 3 | 1 1 3 . . 1 1 . 1 . Gunslinging . | . . . . . . . . . . Exploded 3 | . . 3 . . . . . . . Melee . | . . . . . . . . . . Uniques/NPCs Destroyed . | . . . . . . . . . . Combat | -11 -10 -10 -10 -9 -8 -7 -7 -7 -7 -------- Run | Scr Mat Min Exi Min Mat Fac Was Fac Sto Damage Taken 2256 | . . 471 . . 783 . 107 323 572 Core 876 | . . 79 . . 90 . 49 263 395 Absorbed by Shields 57 | . . . . . . . . . 57 Core Remaining (%) 83 | 100 . . . 68 83 . . . . Volleys Fired 139 | 28 5 39 . 1 54 7 . 4 1 Largest 2 | 1 2 2 . 2 2 1 . 1 1 Hottest 116 | 40 80 80 . 40 116 68 . 28 28 Shots Fired 210 | 28 8 56 . 2 104 7 . 4 1 Gun 155 | 28 8 32 . 2 80 . . 4 1 Cannon 31 | . . . . . 24 7 . . . Launcher 24 | . . 24 . . . . . . . Special . | . . . . . . . . . . Kinetic 66 | . . 5 . 2 54 . . 4 1 Thermal 57 | . . . . . 50 7 . . . Explosive 24 | . . 24 . . . . . . . Electromagnetic 63 | 28 8 27 . . . . . . . Robot Hit Streak 15 | 8 2 3 . 1 15 2 . 5 . Robot Miss Streak 5 | 2 2 5 . 1 3 2 . . . Penetration Max . | . . . . . . . . . . Secondary Targets 2 | . . 1 . . 1 . . . . Max Gunslinging Chain 1 | . . 1 . . 1 . . . . Shots Hit Robots 141 | 18 4 22 . 1 75 9 . 8 4 Core Hits 99 | 6 1 47 . . 34 5 . 4 2 Critical Hits 4 | . . . . . . 4 . . . Critical Kills 2 | . . . . . . 2 . . . Critical Parts Destroyed 2 | . . . . . . 2 . . . Melee Attacks 30 | . . . . . 1 16 . 8 5 Impact 22 | . . . . . 1 16 . 5 . Slashing 3 | . . . . . . . . 3 . Piercing 5 | . . . . . . . . . 5 Sneak Attacks 9 | . . . . . . 5 . 4 . Combat Hostiles . | . . . . . . . . . . Follow-up Attacks . | . . . . . . . . . . Damage Inflicted 4511 | 299 42 1674 . . 1422 461 . 477 136 Guns 1581 | 272 42 214 . . 964 . . 89 . Cannons 560 | . . . . . 458 102 . . . Explosions 1487 | 27 . 1460 . . . . . . . Melee 857 | . . . . . . 359 . 388 110 Ramming 26 | . . . . . . . . . 26 Kinetic 855 | . . 13 . . 753 . . 89 . Thermal 841 | 27 . 43 . . 669 102 . . . Explosive 1417 | . . 1417 . . . . . . . Electromagnetic 515 | 272 42 201 . . . . . . . Impact 550 | . . . . . . 359 . 191 . Slashing 197 | . . . . . . . . 197 . Piercing 110 | . . . . . . . . . 110 Highest Corruption 19 | . . . . . . . 16 19 19 Average Corruption 15 | . . . . . . . 8 16 19 Corruption Purged . | . . . . . . . . . . Effects 38 | . . . . . . . 6 25 7 Message Errors 11 | . . . . . . . 1 7 3 Matter Fused 8 | . . . . . . . 1 6 1 Heat Flow Errors 3 | . . . . . . . . 3 . Energy Discharges 3 | . . . . . . . 2 1 . Parts Rejected 1 | . . . . . . . . 1 . Data Loss (minor) 3 | . . . . . . . 1 2 . Data Loss (major) 1 | . . . . . . . . 1 . Misdirections 6 | . . . . . . . 1 3 2 Targeting Errors 2 | . . . . . . . . 1 1 Overload Shots . | . . . . . . . . . . Overflow Damage 219 | . . 74 . . . 24 . 121 . Projectiles . | . . . . . . . . . . Explosions 74 | . . 74 . . . . . . . Melee 145 | . . . . . . 24 . 121 . Knockbacks 5 | . . . . . 2 2 . 1 . Impact 3 | . . . . . . 2 . 1 . Kinetic 1 | . . . . . 1 . . . . Secondary 1 | . . . . . 1 . . . . Self-Inflicted Damage 164 | . . 152 . . . . . . 12 Shots 6 | . . 6 . . . . . . . Rammed 4 | . . . . . . . . . 4 Targets Rammed 4 | . . . . . . . . . 4 Kicked . | . . . . . . . . . . Crushed . | . . . . . . . . . . Highest Temperature 268 | 20 56 92 . . 268 42 . 251 6 Average Temperature 73 | 20 24 37 . . 88 17 . 122 6 Received Heat Transfer 430 | . . 29 . . 207 . . . 194 Effects 4 | . . . . . 4 . . . . Interference 4 | . . . . . 4 . . . . Siege Activations . | . . . . . . . . . . Robots Corrupted . | . . . . . . . . . . Combat Hostiles . | . . . . . . . . . . Parts Fried 3 | 1 . . . . . 2 . . . Impact Corruptions 4 | . . . . . . 2 . 2 . Robots Melted . | . . . . . . . . . . Combat Hostiles . | . . . . . . . . . . Parts Melted . | . . . . . . . . . . Heat Transferred 1641 | 50 . . . . 1406 185 . . . Parts Sabotaged . | . . . . . . . . . . Parts Stolen . | . . . . . . . . . . Parts Stripped . | . . . . . . . . . . Power Chain Reactions 2 | 1 . 1 . . . . . . . Missiles Intercepted . | . . . . . . . . . . Alert | -11 -10 -10 -10 -9 -8 -7 -7 -7 -7 ------- Run | Scr Mat Min Exi Min Mat Fac Was Fac Sto Peak Influence 339 | 30 79 299 . . 339 104 62 73 34 Average Influence 66 | 13 68 68 . . 139 60 29 44 16 Maximum Alert Level 1 | . . 1 . . 1 . . . . Low Security (%) 90 | 100 100 84 . 100 77 100 100 100 100 Level 1 9 | . . 15 . . 22 . . . . Level 2 . | . . . . . . . . . . Level 3 . | . . . . . . . . . . Level 4 . | . . . . . . . . . . Level 5 . | . . . . . . . . . . High Security . | . . . . . . . . . . Max Security . | . . . . . . . . . . Squads Dispatched 11 | . 3 . . 1 4 1 . 1 1 Investigation 3 | . 1 . . 1 1 . . . . Extermination 1 | . . . . . . . . 1 . Reinforcement 4 | . 2 . . . . 1 . . 1 Assault . | . . . . . . . . . . Garrison 3 | . . . . . 3 . . . . Intercept . | . . . . . . . . . . Construction Impeded . | . . . . . . . . . . Haulers Reinforced . | . . . . . . . . . . Stealth | -11 -10 -10 -10 -9 -8 -7 -7 -7 -7 --------- Run | Scr Mat Min Exi Min Mat Fac Was Fac Sto Distress Signals 2 | . . . . . . . . . 2 Communications Jammed . | . . . . . . . . . . Distress Signals . | . . . . . . . . . . Times Spotted 79 | . 2 34 . 2 20 2 6 4 9 Peak Tracking Total 8 | . 1 5 . 2 6 1 6 3 8 Tactical Retreats 9 | . . 7 . . 2 . . . . Traps | -11 -10 -10 -10 -9 -8 -7 -7 -7 -7 ------- Run | Scr Mat Min Exi Min Mat Fac Was Fac Sto Traps Triggered 5 | . 1 . . . 1 1 . 1 1 Indirectly . | . . . . . . . . . . Trap Hack Attempts . | . . . . . . . . . . Triggered . | . . . . . . . . . . Disarmed . | . . . . . . . . . . Reprogrammed . | . . . . . . . . . . Reused . | . . . . . . . . . . Traps Extracted . | . . . . . . . . . . Installed . | . . . . . . . . . . Triggered 1 | . . 1 . . . . . . . Machines | -11 -10 -10 -10 -9 -8 -7 -7 -7 -7 ---------- Run | Scr Mat Min Exi Min Mat Fac Was Fac Sto Machines Disabled 5 | . 1 2 . . 1 . . . 1 Max in Single Turn 2 | . 1 2 . . 1 . . . 1 Machines Sabotaged . | . . . . . . . . . . Garrisons Compromised . | . . . . . . . . . . Overloaded Fab Kills . | . . . . . . . . . . Fab Network Shutdowns . | . . . . . . . . . . Hacking | -11 -10 -10 -10 -9 -8 -7 -7 -7 -7 --------- Run | Scr Mat Min Exi Min Mat Fac Was Fac Sto Machines Accessed 14 | . . . . 2 5 3 . 3 1 Terminals 10 | . . . . 1 4 3 . 1 1 Fabricators 2 | . . . . . . . . 2 . Repair Stations . | . . . . . . . . . . Recycling Units . | . . . . . . . . . . Scanalyzers 1 | . . . . . 1 . . . . Garrison Access . | . . . . . . . . . . Total Hacks 43 | . . . . 2 21 10 . 8 2 Successful 29 | . . . . 2 17 4 . 6 . Failed 14 | . . . . . 4 6 . 2 2 Catastrophic 2 | . . . . . . 2 . . . Database Lockouts . | . . . . . . . . . . Manual 27 | . . . . 1 12 10 . 2 2 Terminals 28 | . . . . 1 13 10 . 2 2 Fabricators 6 | . . . . . . . . 6 . Repair Stations . | . . . . . . . . . . Recycling Units . | . . . . . . . . . . Scanalyzers 8 | . . . . . 8 . . . . Garrison Access . | . . . . . . . . . . Terminal Hacks 7 | . . . . 2 3 2 . . . Part Schematic 2 | . . . . 1 . 1 . . . Open Door 1 | . . . . 1 . . . . . Terminal Index 2 | . . . . . 1 1 . . . Zone Layout 2 | . . . . . 2 . . . . Fabricator Hacks 5 | . . . . . . . . 5 . Load Schematic 2 | . . . . . . . . 2 . Build 3 | . . . . . . . . 3 . Repair Station Hacks . | . . . . . . . . . . Recycling Unit Hacks . | . . . . . . . . . . Scanalyzer 8 | . . . . . 8 . . . . Insert Component 4 | . . . . . 4 . . . . Analyze 4 | . . . . . 4 . . . . Garrison Access Hacks . | . . . . . . . . . . Unauthorized Hacks 23 | . . . . . 12 7 . 3 1 Terminals 9 | . . . . . 6 2 . 1 . Track 2 | . . . . . 1 . . 1 . Botnet 6 | . . . . . 4 2 . . . Disrupt 1 | . . . . . 1 . . . . Fabricators . | . . . . . . . . . . Repair Stations . | . . . . . . . . . . Recycling Units . | . . . . . . . . . . Scanalyzers . | . . . . . . . . . . Garrison Access . | . . . . . . . . . . Data Cores Recovered . | . . . . . . . . . . Used . | . . . . . . . . . . Hacking Detections 11 | . . . . . 4 3 . 3 1 Full Trace Events . | . . . . . . . . . . Feedback Events . | . . . . . . . . . . Feedback Blocked . | . . . . . . . . . . Robot Schematics Acquired . | . . . . . . . . . . Robots Built . | . . . . . . . . . . Matter . | . . . . . . . . . . Time . | . . . . . . . . . . Total Robot Build Rating . | . . . . . . . . . . Part Schematics Acquired 6 | . . . . 1 4 1 . . . Parts Built 4 | . . . . . . . . 4 . Matter 460 | . . . . . . . . 460 . Time 156 | . . . . . . . . 156 . Total Part Build Rating 14 | . . . . . . . . 14 . Parts Repaired . | . . . . . . . . . . Time . | . . . . . . . . . . Parts Recycled . | . . . . . . . . . . Recycled Matter . | . . . . . . . . . . Retrieved Matter . | . . . . . . . . . . Retrieved Components . | . . . . . . . . . . Parts Scanalyzed 4 | . . . . . 4 . . . . Part Schematics Acquired 4 | . . . . . 4 . . . . Parts Damaged 1 | . . . . . 1 . . . . Bothacking | -11 -10 -10 -10 -9 -8 -7 -7 -7 -7 ------------ Run | Scr Mat Min Exi Min Mat Fac Was Fac Sto Used RIF Installer . | . . . . . . . . . . Robots Hacked . | . . . . . . . . . . Non-combat . | . . . . . . . . . . Combat . | . . . . . . . . . . Robot Hacks Applied . | . . . . . . . . . . Relay Couplers Released . | . . . . . . . . . . Robots Rewired . | . . . . . . . . . . Allies Hacked . | . . . . . . . . . . Hacks Repelled . | . . . . . . . . . . Allies | -11 -10 -10 -10 -9 -8 -7 -7 -7 -7 -------- Run | Scr Mat Min Exi Min Mat Fac Was Fac Sto Total Allies 6 | . . 3 . 2 . . 1 . . Largest Group 3 | . . 3 . 2 2 . 1 . . Highest-Rated Group 49 | . . 40 . 49 49 . 31 . . Highest-Rated Ally 31 | . . 16 . 31 31 . 31 . . Total Orders 1 | . . 1 . . . . . . . GOTO 1 | . . 1 . . . . . . . Ally Attacks 41 | . . 28 . . 5 . 8 . . Total Damage 439 | . . 293 . . 22 . 124 . . Kills 2 | . . 2 . . . . . . . Allies Corrupted . | . . . . . . . . . . Allies Melted . | . . . . . . . . . . Intel | -11 -10 -10 -10 -9 -8 -7 -7 -7 -7 ------- Run | Scr Mat Min Exi Min Mat Fac Was Fac Sto Robot Analysis Total . | . . . . . . . . . . Derelict Logs Recovered 3 | . . 1 . 2 . . . . . Drone Launches . | . . . . . . . . . . Drone Recoveries . | . . . . . . . . . . Exploration | -11 -10 -10 -10 -9 -8 -7 -7 -7 -7 ------------- Run | Scr Mat Min Exi Min Mat Fac Was Fac Sto Turns Passed 4338 | 157 135 1336 149 445 809 662 138 419 88 Spaces Moved 3701 | 96 120 967 156 471 557 615 210 415 94 Core 554 | 6 . . . . . . 115 415 18 Treads . | . . . . . . . . . . Legs . | . . . . . . . . . . Wheels 2976 | 90 120 967 156 471 557 615 . . . Hover . | . . . . . . . . . . Flight 171 | . . . . . . . 95 . 76 Fastest Speed 40 | 50 80 90 90 90 86 90 40 50 40 Average Speed 82 | 83 81 90 90 90 89 90 45 57 47 Slowest Speed 150 | 90 90 100 90 90 100 100 50 100 150 Overloaded Moves . | . . . . . . . . . . Propulsion Burnouts . | . . . . . . . . . . Robots Hopped . | . . . . . . . . . . Cave-ins Triggered . | . . . . . . . . . . Exploration Rate (%) 45 | 6 29 99 54 95 40 18 84 8 22 Regions Visited 9 Branch Regions 4 Pre-discovered Areas 1 | . . . . 1 . . . . . Known Exits Taken 2 | . . . . . 1 . . 1 . Unknown Exits Taken 5 | 1 1 1 1 1 . . . . . Scrap Searched 2 | . . 2 . . . . . . . Spaces Dug 26 | . . 13 . . 1 8 . 4 . Terrain Destroyed 265 | 5 . 244 . . 4 8 . 4 . Melee 13 | . . . . . 1 8 . 4 . Projectile 3 | . . . . . 3 . . . . AOE 249 | 5 . 244 . . . . . . . Actions | -11 -10 -10 -10 -9 -8 -7 -7 -7 -7 --------- Run | Scr Mat Min Exi Min Mat Fac Was Fac Sto Total 4744 | 146 148 1376 164 491 768 684 257 579 131 Wait 660 | . 16 346 . 10 90 32 30 133 3 Move 3693 | 95 119 966 155 470 556 615 209 414 94 Hop . | . . . . . . . . . . Pick Up 87 | 14 5 12 4 5 27 6 1 6 7 Fast Attach . | . . . . . . . . . . Attach 40 | 6 1 4 . . 8 2 2 8 9 Detach 8 | . . . . . 1 . 2 4 1 Swap 23 | . 1 4 2 1 11 2 2 . . Drop 55 | 3 1 5 3 4 20 4 11 2 2 Fire 139 | 28 5 39 . 1 54 7 . 4 1 Melee 30 | . . . . . 1 16 . 8 5 Ram 4 | . . . . . . . . . 4 Kick . | . . . . . . . . . . Crush . | . . . . . . . . . . Escape Stasis 5 | . . . . . . . . . 5 Rewire . | . . . . . . . . . . Trap . | . . . . . . . . . . Miscellaneous . | . . . . . . . . . . Route ------- -11/Scrapyard -10/Materials -10/Mines (discovered 3 exits: [*Mat x2] / [*Exi]) -10/Exiles (discovered 2 exits: *Min x2) -9/Mines (discovered 2 exits: *Mat x2) -8/Materials -7/Factory -7/Waste -7/Factory -7/Storage History --------- Turn | Location | Event 7 | -11/Scrapyard | Discovered new exit (range 15) 158 | -11/Scrapyard | Entered Materials 265 | -10/Materials | Discovered new exit (range 16) 293 | -10/Materials | Entered Mines 306 | -10/Mines | Received a Rocket Launcher from a helpful Derelict 314 | -10/Mines | Build established: Mutant 440 | -10/Mines | Assisted by bots powering up and referring to "LRC-V3" 462 | -10/Mines | Discovered new exit (range 12) 520 | -10/Mines | Discovered new exit (range 5) 545 | -10/Mines | Deemed a non-threat by the Exiles lab entrance 627 | -10/Mines | Assembled infested the area 632 | -10/Mines | Assisted by a Guerilla fighting off Assembled 638 | -10/Mines | Learned Materials stockpile data 1626 | -10/Mines | Discovered new exit (range 5) 1629 | -10/Mines | Entered Exiles 1643 | -10/Exiles | Discovered new exit (range 15) 1662 | -10/Exiles | Met 8R-AWN 1674 | -10/Exiles | Met EX-HEX 1724 | -10/Exiles | Met EX-DEC 1768 | -10/Exiles | Discovered new exit (range 14) 1778 | -10/Exiles | Entered Mines 1780 | -9/Mines | Met a Derelict bent on vengeance 1818 | -9/Mines | Met a Derelict shopkeep closing up shop 2015 | -9/Mines | Learned location of Storage (-7) 2051 | -9/Mines | Discovered new exit (range 15) 2087 | -9/Mines | Discovered new exit (range 12) 2098 | -9/Mines | Learned location of 1 exit from Materials 2223 | -9/Mines | Entered Materials 2223 | -8/Materials | Accompanied by 2 allies 2223 | -8/Materials | Evolved 4 slots: Propulsion x2, Utility x2 2224 | -8/Materials | Identified exit to Factory 2228 | -8/Materials | Led the pair of lost Derelicts to an unsafe place 2289 | -8/Materials | Garrison activated, responded to threat 3032 | -8/Materials | Entered Factory 3032 | -7/Factory | Evolved 2 slots: Utility x2 3351 | -7/Factory | Build established: Hacker-Mutant 3368 | -7/Factory | Discovered new exit (range 16) 3380 | -7/Factory | Identified exit to Factory 3694 | -7/Factory | Sucked down chute 3694 | -7/Factory | Entered Waste 3695 | -7/Waste | Met a frightened Derelict 3709 | -7/Waste | EMP discharged 3713 | -7/Waste | Spotted C-40 Crusher 3719 | -7/Waste | Spotted C-40 Crusher 3727 | -7/Waste | Spotted C-40 Crusher 3733 | -7/Waste | Spotted C-40 Crusher 3734 | -7/Waste | Spotted C-40 Crusher 3736 | -7/Waste | Spotted C-40 Crusher 3755 | -7/Waste | Crushed by Compactor (1 part destroyed, 1 dropped) 3794 | -7/Waste | Crushed by Compactor (1 part destroyed, 2 dropped) 3809 | -7/Waste | EMP discharged 3809 | -7/Waste | System corruption reached 10% 3824 | -7/Waste | Discovered new exit (range 15) 3832 | -7/Waste | Identified exit to Factory 3832 | -7/Waste | Entered Factory 3922 | -7/Factory | Fabricated Xenon Bombardment Thruster? 3925 | -7/Factory | Fabricated Hacking Suite (x1) 3999 | -7/Factory | Fabricated Hacking Suite (x1) 4238 | -7/Factory | Discovered new exit (range 10) 4250 | -7/Factory | Identified exit to Storage 4251 | -7/Factory | Entered Storage 4294 | -7/Storage | Core integrity fell below 50% 4301 | -7/Storage | Core integrity fell below 20% 4329 | -7/Storage | Lost 3 parts (1p1n1u) 4339 | -7/Storage | Destroyed by Y-54 Guardian with Flak Gun Last Messages --------------- 04296_ Field strength at 21. 04297_ Field strength at 14. 04298_ Xenon Bombardment Thruster destroyed. 04298_ Stasis field depleted. 04300_ Slammed into U-05 Engineer. 04303_ Slammed into R-06 Scavenger. 04304_ U-05 Engineer lays Concrete. 04305_ Slammed into R-06 Scavenger. 04308_ System corrupted: Matter fused (-8). 04309_ Slug penetrates Storage Shell. 04309_ Storage Shell breached. 04312_ Acquired Deuterium Engine. 04316_ Acquired Unknown Device. 04317_ Identified Thermal Generator. 04318_ Dropped Deuterium Engine. 04323_ Acquired Spear. 04324_ SQ:FUONAPHI#ZW5JUON5X4Y441H7 04327_ System corrupted: Spear targeting data glitched. 04333_ R-06 Scavenger collects Deuterium Engine. 04336_ Thermal Generator destroyed. Map ----- +----------------------------------------------------+ | ?????????????????????????????????????????????????? | | ?????????????????????????????????????????????????? | | ?????????????????????????????????????????????????? | | ?????????????????????????????????????????????????? | | ?????????????????????? ?????????????????????????? | | ?????????????????????? ?????????????????????????? | | ?????????????????????? ?????????????????????????? | | ?????????????????????? ?????????????????????????? | | ?????????????????????? ?????????????????????????? | | ?????????????????????? ?????????????????????????? | | ?????????????????????? ?????????????????????????? | | ?????????????????????? #??????#########?????????? | | ?????????????????????? +??????# #?????????? | | ?????????????????????? #??????# "" "" ##??##????? | | ?????????????????????? #??????# ""T"" #?# ###### | | ??????????????????????# #??????# """ ##? | | ??????????????????????# #??????# #? ? | | ??????????????????????# ##########/###### """ ""?? | | ??????????????????????# + """ ""?? | | ??????????????????????# ####### # """ ""?? | | ?????????????????????##/####### # """ ""?? | | ?????????????????????# # +?""" "??? | | ?????????????????????# """" # ^% #? ??? | | ?????????????????????# " "?# ! #####+#### | | ?????????????????????# """Y/"?# * | | ?????????????????????# "%@" "?+ | | ?????????????????????# " !"" # ! | | ?????????????????????# """"? # #######/#### | | ?????????????????????# ????? # # | | ?????????????????????# ????? # + !! | | ?????????????????????##?????########### !! | | ?????????????????????????????????????#T ! | | ?????????????????????????????????????## | | ??????????????????????????????????????# | | ??????????????????????????????????????############ | | | | | | | | | | | | | | | | | | | | | | | | | | | | | | | +----------------------------------------------------+ Best States ------------- Heat Dissipation 34 Energy Generation 15 Energy Capacity 160 Matter Stores 300 Matter Capacity 300 Sight Range 16 Robot Scan Range 20 Terrain Scan Density 210 Additional Mass Support 9 Armor Coverage 150 Evasion (%) 62 Recoil Reduction 1 Kinecelleration 30 Offensive Hacking 20 Defensive Hacking 10 Item Schematics ----------------- Lrg. Storage Unit | -9/Mines | Hacked Lrn. Sensor Array | -8/Materials | Scanalyzed System Shield | -8/Materials | Scanalyzed Hacking Suite | -8/Materials | Scanalyzed Xenon Bombardment Thruster | -8/Materials | Scanalyzed Adv. Signal Interpreter | -7/Factory | Hacked Robot Schematics ------------------ None Fabricated ------------ Xenon Bombardment Thruster | x2 | -7/Factory Hacking Suite | x1 | -7/Factory Hacking Suite | x1 | -7/Factory Alien Tech Used ----------------- None Achievements -------------- None Challenges ------------ None Game ------ Seed ChargeCoilCharger Manual? 0 Play Time 00:43:25 Cumulative 203.8 hours Start 2019.12.01 @ 22:05:50 End 2019.12.01 @ 22:48:50 Sessions 1 Manual Loads 0 Difficulty Rogue Special Mode None Game No. 278 Rogue 278 Adventurer 0 Explorer 0 Win Type - Total 2 Types 1/0/0/1/0/0/0 Lore% 52 Gallery% 75 Achievement% 52 Wizard Run 0 Options --------- ASCII 0 Keyboard 0 Movement Numpad Keybinds 0 Fullscreen 1 Font 16/Terminus Map View 75x55 Tactical HUD 1 Map Filters NONE Filters NONE Steam 1 RUN: 47354523-3787-46e1-a897-53105730c3f0